[Event "13th Chennai Open 2022"]
[Site "Chennai"]
[Date "2022.06.20"]
[Round "1.1"]
[White "Thapa, Ganesh Bahadur"]
[Black "Savchenko, Boris"]
[Result "0-1"]
[ECO "B30"]
[WhiteElo "1422"]
[BlackElo "2524"]
[Annotator "TA"]
[PlyCount "82"]
[EventDate "2022.06.19"]
[EventType "swiss"]
[EventCountry "IND"]
[SourceTitle "playchess.com"]
[Source "ChessBase"]
[SourceQuality "1"]
[TimeControl "5400+30"]

{[%evp 9,82,-11,3,-23,-22,-22,-8,-23,-14,-48,-18,-25,-5,-19,-18,-15,-6,-57,-48,-121,-112,-124,-99,-147,-123,-193,-152,-266,-218,-352,-341,-368,-326,-253,-216,-372,-362,-416,-408,-537,-504,-551,-541,-584,-591,-589,-591,-587,-574,-556,-568,-522,-474,-499,-492,-896,-893,-877,-857,-837,-812,-1579,-1566,-29971,-29972,-29984,-29985,-29983,-29984,-29995,-29992,-29992,-29993,-29993,-29994]} 1. e4 {[%emt 0:00:03]} c5 {[%emt 0:00:07]} 2. Nc3 {[%emt 0:01:08]} g6 {[%emt 0:00:07]} 3. Nf3 {[%emt 0:02:35]} Bg7 {[%emt 0:00:21]} 4. Bc4 {[%emt 0:01:31]} Nc6 {[%emt 0:00:22]} 5. h3 {[%emt 0:00:49]} a6 {[%emt 0:00:33]} 6. a3 {[%emt 0:01:41] B30: Sicilian: 2...Nc6 3 Bb5, lines without ...g6.} e6 {[%emt 0:00:09]} 7. O-O {[%emt 0:02:12]} Nge7 {[%emt 0:00:09] [#]} 8. Re1 $146 {[%emt 0:02:42] The position is equal.} ({Predecessor:} 8. d3 d5 9. exd5 exd5 10. Ba2 O-O 11. Bg5 Be6 12. Qd2 Re8 13. Rfe1 Qd7 14. Kh2 {0-1 (28) Mishra,A (1431)-Bharadwaj,N (1811) Chess.com INT 2021}) 8... O-O {[%emt 0:00:11]} 9. Bf1 {[%emt 0:02:03]} d5 {[%emt 0:00:16]} 10. d3 {[%emt 0:00:54]} h6 {[%emt 0:00:09]} 11. Bd2 {[%emt 0:01:19]} b5 {[%emt 0:00:19]} 12. Qc1 {[%emt 0:00:48]} Kh7 {[%emt 0:00:13]} 13. Nh2 {[%emt 0:01:28]} ({White should try} 13. exd5 $11 exd5 14. b4) 13... f5 {[%emt 0:00:16]} 14. exf5 {[%emt 0:04:23] Black converts the advantage convincingly.} (14. exd5 $15 exd5 15. g3) 14... Nxf5 $17 {[%emt 0:00:16]} 15. Rb1 {[%emt 0:01:52]} Ra7 {[%emt 0:00:33]} 16. Ne2 {[%emt 0:01:41] [#]} (16. b4 $142) 16... Raf7 $1 {[%emt 0:00:21] Black is much more active. The white rooks are badly placed.} 17. c3 {[%emt 0:02:04]} (17. b3 $17) 17... e5 {[%emt 0:00:20]} 18. g3 {[%emt 0:02:30]} (18. b3 $17 {was necessary.}) 18... Nfe7 {[%emt 0:00:29]} 19. f4 {[%emt 0:00:21]} (19. b3 {might work better.}) 19... exf4 {[%emt 0:00:51]} 20. Nxf4 {[%emt 0:00:42]} Qd6 {[%emt 0:00:17] Prevents Ne6.} ({Worse is} 20... g5 21. Ne6 Bxe6 22. Rxe6 $17) 21. Bg2 {[%emt 0:00:52]} Bf5 {[%emt 0:01:28]} 22. Re3 $2 {[%emt 0:04:03]} (22. b4 {was worth a try.}) 22... d4 {[%emt 0:01:38]} 23. Rf3 {[%emt 0:00:13]} Ne5 {[%emt 0:00:43]} 24. Rf1 {[%emt 0:02:41]} Nxd3 {[%emt 0:00:19]} 25. Nxd3 {[%emt 0:01:47]} Bxd3 {[%emt 0:00:10][%mdl 64] [#] Discovered Attack} 26. Rxf7 {[%emt 0:00:52]} Rxf7 {[%emt 0:00:08]} 27. Bf4 {[%emt 0:00:19]} Rxf4 {[%emt 0:00:10]} 28. gxf4 {[%emt 0:00:45]} dxc3 {[%emt 0:00:34]} 29. bxc3 {[%emt 0:00:17]} Bxb1 {[%emt 0:00:09]} 30. Qxb1 {[%emt 0:00:02]} Qxf4 {[%emt 0:00:23]} 31. Qe1 {[%emt 0:02:55]} Nf5 {[%emt 0:00:28][%cal Ob5b4]} 32. Ng4 {[%emt 0:01:01]} (32. Nf1 $142) 32... h5 $19 {[%emt 0:00:19]} 33. Nf2 {[%emt 0:00:37]} Qg3 {[%emt 0:00:10] Strongly threatening ...Ne3.} 34. Qe4 {[%emt 0:02:14]} Bxc3 {[%emt 0:00:42]} 35. Nd3 {[%emt 0:00:20]} Bd4+ {[%emt 0:00:12]} 36. Kh1 {[%emt 0:00:07]} c4 {[%emt 0:00:24] Black mates.} 37. Ne1 {[%emt 0:01:14]} Qd6 {[%emt 0:00:22]} 38. Qb7+ {[%emt 0:00:35]} Kh6 {[%emt 0:00:21]} 39. Be4 {[%emt 0:00:23]} Qf4 {[%emt 0:00:16]} 40. Nf3 {[%emt 0:00:04]} Ng3+ {[%emt 0:00:10]} 41. Kg2 {[%emt 0:00:26]} Nxe4 {[%emt 0:00:08] Weighted Error Value: White=0.74/Black=0.11 (very precise)} 0-1

[Event "13th Chennai Open 2022"]
[Site "Chennai"]
[Date "2022.06.20"]
[Round "1.2"]
[White "Fedorov, Alexei"]
[Black "Aswinika Mani R"]
[Result "1-0"]
[ECO "B90"]
[WhiteElo "2529"]
[BlackElo "1408"]
[Annotator "TA"]
[PlyCount "59"]
[EventDate "2022.06.19"]
[EventType "swiss"]
[EventCountry "IND"]
[SourceTitle "playchess.com"]
[Source "ChessBase"]
[SourceQuality "1"]
[TimeControl "5400+30"]

{[%evp 10,59,28,0,0,0,3,0,47,25,33,70,95,89,93,104,111,27,132,130,147,64,85,85,81,89,95,85,91,32,87,83,131,133,480,504,537,528,597,608,562,561,661,665,685,685,678,675,614,591,700,685]} 1. e4 {[%emt 0:00:03]} c5 {[%emt 0:00:19]} 2. Nf3 {[%emt 0:00:15]} d6 {[%emt 0:00:08]} 3. d4 {[%emt 0:00:27]} cxd4 {[%emt 0:00:16]} 4. Nxd4 {[%emt 0:00:03]} Nf6 {[%emt 1:31:47]} 5. Nc3 {[%emt 0:00:05]} a6 {[%emt 0:00:00]} 6. Qf3 {[%emt 1:32:37]} g6 {[%emt 0:00:00] B90: Sicilian Najdorf: Unusual White 6th moves, 6 Be3 Ng4 and 6 Be3 e5.} 7. h3 {[%emt 0:00:00]} Bg7 {[%emt 0:00:00]} 8. Be3 {[%emt 0:00:00]} Nbd7 {[%emt 0:02:00]} (8... Bd7 $11 {is superior.}) 9. g4 {[%emt 0:01:30]} O-O {[%emt 0:00:00]} 10. O-O-O {[%emt 0:00:00]} Ne5 {[%emt 0:00:00]} 11. Qg2 Nc6 {[%emt 0:01:30]} 12. f4 {[%emt 0:00:00][%cal Oe4e5]} Nd7 {[%emt 0:00:30] [#] Prevents e5.} 13. e5 $146 {[%emt 0:00:00]} (13. h4 $16) ({Predecessor:} 13. h4 Nxd4 14. Bxd4 e5 15. fxe5 Nxe5 16. g5 Be6 17. Kb1 Rc8 18. h5 Re8 19. hxg6 hxg6 {½-½ (46) Mchedlishvili,M (2637)-Magalashvili,D (2521) Tbilisi 2013}) 13... Rb8 {[%emt 0:00:00]} (13... dxe5 $11 14. Nxc6 bxc6) 14. exd6 $16 {[%emt 0:00:00] White is much more active. The black rooks are badly placed.} (14. Nxc6 bxc6 15. Bc4 (15. exd6 Bxc3 16. bxc3 exd6 $17) (15. Qxc6 $2 Bb7 $19) 15... d5 $11) 14... exd6 {[%emt 0:01:00]} 15. Bc4 {[%emt 0:00:00]} (15. Nxc6 bxc6 16. Qd2 (16. Rxd6 Qa5 $17) (16. Qxc6 $2 Bb7 $19) 16... c5 $17) (15. Qf2 $16) 15... Nxd4 {[%emt 0:00:00]} 16. Bxd4 {[%emt 0:00:00]} Bxd4 {[%emt 0:00:00]} 17. Rxd4 {[%emt 0:00:00]} b5 {[%emt 0:00:00]} 18. Bd5 {[%emt 0:00:00]} Nf6 {[%emt 0:02:00]} 19. Rhd1 {[%emt 0:00:00]} (19. Bc6 $16) 19... Nxd5 {[%emt 0:00:30]} (19... b4 $1 $14 20. Ne2 Nxd5 21. Qxd5 Bb7) 20. Qxd5 {[%emt 0:00:00]} ({But not} 20. Rxd5 $6 Bb7 $11) 20... Be6 {[%emt 0:00:00]} (20... Bb7 $142 21. Qg5 (21. Qxd6 Qh4 $16) 21... f5) 21. Qxd6 {[%emt 0:00:00]} Qh4 {[%emt 0:00:00][%mdl 8192] Loses the game.} (21... Qxd6 $16 22. Rxd6 a5) 22. Ne4 $18 {[%emt 0:00:00] White is clearly winning.} Rbe8 {[%emt 0:00:00]} 23. f5 {[%emt 0:00:00] [#] Threatens to win with g5.} Bc4 {[%emt 0:00:00]} 24. Nf6+ {[%emt 0:00:00]} Kg7 {[%emt 0:00:00]} 25. Nxe8+ {[%emt 0:08:00]} Rxe8 {[%emt 0:00:00]} 26. b3 {[%emt 0:00:00]} Be2 {[%emt 0:00:00]} 27. f6+ {[%emt 0:00:00]} Qxf6 {[%emt 0:00:00]} 28. Qxf6+ {[%emt 0:00:00]} Kxf6 {[%emt 0:00:00]} 29. Re1 {[%emt 0:00:00]} Re6 {[%emt 0:00:00]} 30. Kd2 {[%emt 0:00:00] Weighted Error Value: White=0.14 (very precise) /Black=0.62} 1-0

[Event "13th Chennai Open 2022"]
[Site "Chennai"]
[Date "2022.06.20"]
[Round "1.3"]
[White "Aman Khinvasara"]
[Black "Tran, Tuan Minh"]
[Result "0-1"]
[ECO "A45"]
[WhiteElo "1418"]
[BlackElo "2533"]
[Annotator "TA"]
[PlyCount "44"]
[EventDate "2022.06.19"]
[EventType "swiss"]
[EventCountry "IND"]
[SourceTitle "playchess.com"]
[Source "ChessBase"]
[SourceQuality "1"]
[TimeControl "5400+30"]

{[%evp 9,44,-7,-11,-6,-10,-7,-12,-6,0,-67,-68,-70,0,-26,-31,-478,-502,-554,-551,-625,-597,-626,-619,-622,-619,-696,-696,-676,-703,-691,-694,-778,-770,-849,-800,-1330,-1309]} 1. d4 {[%emt 0:00:01]} Nf6 {[%emt 0:00:22]} 2. Bf4 {[%emt 0:00:07]} c5 {[%emt 0:00:05]} 3. c3 {[%emt 0:00:10]} Qb6 {[%emt 0:00:16]} 4. Qb3 {[%emt 0:00:41]} cxd4 {[%emt 0:00:07]} 5. Qxb6 {[%emt 0:00:16]} axb6 {[%emt 0:00:30]} 6. cxd4 {[%emt 0:00:11] A45: Trompowsky Attack.} Nc6 {[%emt 0:00:04]} 7. e3 {[%emt 0:03:06]} Nb4 {[%emt 0:00:11][%cal Bc6b4,Bb4a2,Ba2c3,Bc3a4,Ba4b6][%mdl 32] [#] Hoping for ...Nc2+.} 8. Kd1 {[%emt 0:00:47] [#] Against Nc2. The position is equal.} Ne4 $146 {[%emt 0:02:42]} ({Predecessor:} 8... Rxa2 9. Rxa2 Nxa2 10. Bb5 e6 11. f3 Nd5 12. Ne2 Nxf4 13. Nxf4 Nb4 14. Nd2 Bd6 {0-1 (46) Bohnstorff,M (2050)-Sebastian,D (2445) Lueneburg 2017}) 9. Bg3 {[%emt 0:00:22]} (9. Nh3 $11) 9... Nxa2 $15 {[%emt 0:08:36][%cal Oa2c3] Black is more active.} 10. Ke1 {[%emt 0:01:16] And now Bc4 would win.} Ra5 {[%emt 0:05:20]} (10... d5 $1 $15 11. Nf3 e6) 11. Bc7 {[%emt 0:06:33] Threatens to win with f3.} (11. Na3 $5 {[%cal Ra1a2]} Nb4 12. Rc1 $11) 11... e5 $36 {[%emt 0:06:07][%mdl 2048] ...Bb4+ is the strong threat. Black has the initiative.} 12. Bxb6 $2 {[%emt 0:04:33][%mdl 8192] Now White is beyond hope.} ({White should play} 12. Bc4 $15 Nb4 13. Rxa5 bxa5 14. dxe5) 12... Bb4+ $19 {[%emt 0:00:06] Black is clearly winning.} 13. Nc3 {[%emt 0:00:27]} Ra4 {[%emt 0:00:23]} 14. Bb5 {[%emt 0:11:37]} Naxc3 {[%emt 0:00:21][%cal Ra4a1]} 15. Bxa4 {[%emt 0:00:36]} Nxa4+ {[%emt 0:00:04][%mdl 64] [#] Discovered Attack. Pair of Knights!} 16. Ke2 {[%emt 0:00:13]} Nxb6 {[%emt 0:00:05]} 17. f3 {[%emt 0:00:41]} Nd2 {[%emt 0:00:29]} 18. dxe5 {[%emt 0:00:36]} O-O {[%emt 0:00:07]} 19. Nh3 {[%emt 0:02:34]} Ndc4 {[%emt 0:00:45][%csl LRb2,LRe5]} 20. f4 {[%emt 0:00:44]} d6 {[%emt 0:00:12]} 21. exd6 {[%emt 0:00:11]} Bg4+ {[%emt 0:00:49]} 22. Kd3 {[%emt 0:01:40]} Rd8 {[%emt 0:00:41] Weighted Error Value: White=1.00/Black=0.08 (flawless)} 0-1

[Event "13th Chennai Open 2022"]
[Site "Chennai"]
[Date "2022.06.20"]
[Round "1.4"]
[White "Aronyak Ghosh"]
[Black "Dipesh Seeraj K S"]
[Result "1-0"]
[ECO "D33"]
[WhiteElo "2494"]
[BlackElo "1418"]
[Annotator "TA"]
[PlyCount "41"]
[EventDate "2022.06.19"]
[EventType "swiss"]
[EventCountry "IND"]
[SourceTitle "playchess.com"]
[Source "ChessBase"]
[SourceQuality "1"]
[TimeControl "5400+30"]

{[%evp 14,41,43,24,46,43,78,71,208,216,195,195,303,246,274,272,568,564,578,479,475,469,458,457,860,724,918,908,3100,2120]} 1. c4 {[%emt 0:00:45]} Nf6 {[%emt 0:00:11]} 2. Nc3 {[%emt 0:00:36]} c5 {[%emt 0:00:49]} 3. g3 {[%emt 0:02:52]} Nc6 {[%emt 0:04:05]} 4. Bg2 {[%emt 0:00:13]} e6 {[%emt 0:02:27]} 5. Nf3 {[%emt 0:00:35]} d5 {[%emt 0:01:03]} 6. cxd5 {[%emt 0:00:26]} exd5 {[%emt 0:00:09]} 7. d4 {[%emt 0:00:17]} cxd4 {[%emt 0:05:07] is cutting edge theory.} 8. Nxd4 {[%emt 0:00:21]} Bb4 {[%emt 0:03:24] D33: Tarrasch Defence: 6 g3 sidelines.} 9. O-O {[%emt 0:06:55]} Bxc3 {[%emt 0:05:09]} 10. bxc3 {[%emt 0:01:25][%cal Bb2c3,Bc3c4][%mdl 32]} h6 {[%emt 0:16:55]} (10... O-O $16 {is a better defense.}) 11. Nxc6 $18 {[%emt 0:12:25]} bxc6 {[%emt 0:00:24] [#]} 12. Ba3 $1 {[%emt 0:00:06] [#] Qd4 is the strong threat.} Qc7 $146 {[%emt 0:09:39]} (12... Qa5 {keeps fighting.}) ({Predecessor:} 12... Bf5 13. Qd4 Qc7 14. c4 O-O-O 15. cxd5 Nxd5 16. Rac1 Rhe8 17. Qc4 Kb7 18. Rfd1 Be6 {1-0 (36) Friedrich,J (2189)-Andreadakis,L (1957) Siebenlehn 2010}) 13. Qd4 {[%emt 0:01:51] Black must now prevent c4.} Be6 {[%emt 0:07:58]} 14. Rab1 {[%emt 0:03:29]} Kd7 $2 {[%emt 0:08:27]} (14... Rc8 15. Bc5 Rg8) 15. c4 {[%emt 0:02:32] aiming for cxd5. White is clearly winning.} Rhb8 {[%emt 0:02:21]} 16. e4 {[%emt 0:01:40][%cal Be2e4,Be4d5][%mdl 32]} Rxb1 {[%emt 0:06:05]} 17. Rxb1 {[%emt 0:00:05]} Rb8 {[%emt 0:02:59]} 18. Rd1 {[%emt 0:00:28]} ({Less strong is} 18. Rxb8 Qxb8 19. cxd5 cxd5 $18) 18... Ke8 {[%emt 0:01:18]} (18... Qa5 $142 19. exd5 cxd5) 19. cxd5 {[%emt 0:03:58]} cxd5 {[%emt 0:00:20]} 20. exd5 {[%emt 0:04:29]} Bd7 {[%emt 0:03:15]} 21. Qe3+ {[%emt 0:00:46] White took control after the opening.  Weighted Error Value: White=0.18 (very precise) /Black=0.76} 1-0

[Event "13th Chennai Open 2022"]
[Site "Chennai"]
[Date "2022.06.20"]
[Round "1.5"]
[White "Gairick Saha"]
[Black "Deepan Chakkravarthy J."]
[Result "0-1"]
[ECO "A40"]
[WhiteElo "1368"]
[BlackElo "2478"]
[Annotator "TA"]
[PlyCount "72"]
[EventDate "2022.06.19"]
[EventType "swiss"]
[EventCountry "IND"]
[SourceTitle "playchess.com"]
[Source "ChessBase"]
[SourceQuality "1"]
[TimeControl "5400+30"]

{[%evp 9,72,24,38,27,46,59,52,43,41,35,44,36,31,25,28,33,37,31,26,43,44,13,18,20,28,3,27,31,37,37,41,20,20,0,0,-64,0,-56,0,-40,0,-436,-436,-436,-436,-397,-421,-775,-793,-779,-732,-829,-795,-806,-793,-792,-785,-901,-666,-781,-782,-800,-810,-775,-430]} 1. d4 {[%emt 0:00:30]} e6 {[%emt 0:00:30]} 2. c4 {[%emt 0:00:30]} Bb4+ {[%emt 0:00:30]} 3. Bd2 {[%emt 0:00:30]} a5 {[%emt 0:00:30]} 4. a3 {[%emt 0:00:30]} Bxd2+ {[%emt 0:00:30]} 5. Qxd2 {[%emt 0:00:30]} d6 {[%emt 0:00:30]} 6. Nf3 {[%emt 0:00:30] A40: Unusual replies to 1 d4.} Ne7 {[%emt 0:00:30]} 7. Nc3 {[%emt 0:00:30]} O-O {[%emt 0:00:30]} 8. e3 {[%emt 0:00:30] [#] White is slightly better.} b6 $146 {[%emt 0:00:30]} ({Predecessor:} 8... a4 9. Qc2 Bd7 10. Bd3 h6 11. g4 e5 12. Rg1 exd4 13. exd4 Ng6 14. O-O-O Nh4 15. Nxh4 Qxh4 {0-1 (43) Aymerich Verdaguer,E (2164)-Lopez Martinez,J (2549) Mollet del Valles 2016}) 9. Bd3 {[%emt 0:00:30]} Bb7 {[%emt 0:00:30]} 10. Qe2 {[%emt 0:00:30]} Nd7 {[%emt 0:00:30]} 11. O-O {[%emt 0:00:30]} Ng6 {[%emt 0:00:30]} 12. Rad1 {[%emt 0:00:30]} f5 {[%emt 0:00:30]} 13. Rfe1 {[%emt 0:00:30]} Qe7 {[%emt 0:00:30]} 14. Bb1 {[%emt 0:00:30]} Rae8 {[%emt 0:00:30]} 15. d5 {[%emt 0:00:30]} e5 {[%emt 0:00:30] Against Nd4} 16. Nb5 {[%emt 0:00:30]} Nc5 {[%emt 0:00:30]} 17. b4 {[%emt 0:00:30]} axb4 {[%emt 0:00:30]} 18. axb4 {[%emt 0:00:30]} Na6 {[%emt 0:00:30]} 19. Qb2 {[%emt 0:00:30]} Bc8 {[%emt 0:00:30]} 20. Na7 {[%emt 0:00:30]} Bd7 {[%emt 0:00:30]} 21. Qa3 {[%emt 0:00:30]} Nb8 {[%emt 0:00:30]} 22. Ba2 {[%emt 0:00:30]} ({Better is} 22. Qa2 $11) 22... f4 {[%emt 0:00:30]} ({Black should play} 22... e4 $1 $15 23. Nd4 Qg5) 23. c5 {[%emt 0:00:30]} (23. Bb1 $11) 23... Kh8 {[%emt 0:00:30]} (23... bxc5 $15 24. bxc5 Bg4) 24. cxb6 {[%emt 0:00:30]} cxb6 {[%emt 0:00:30]} 25. b5 $2 {[%emt 0:00:30][%mdl 8192] [#]} (25. e4 $11 {and White stays safe.}) 25... Bg4 $1 $19 {[%emt 0:00:30] And now ...Bxf3 would win.} 26. e4 {[%emt 0:00:30]} Bxf3 {[%emt 0:00:30]} 27. gxf3 {[%emt 0:00:30]} Nd7 {[%emt 0:00:30][%cal Bb8d7,Bd7c5,Bc5e4][%mdl 32]} ({Don't blunder} 27... Qg5+ $2 28. Kf1 Nd7 29. Ra1 $19) 28. Nc6 {[%emt 0:00:30]} (28. Kh1 $142 Ra8 29. Bc4) 28... Qg5+ {[%emt 0:00:30]} 29. Kf1 {[%emt 0:00:30]} Ra8 {[%emt 0:00:30]} 30. Qb2 {[%emt 0:00:30]} Nh4 {[%emt 0:00:30]} 31. Ke2 {[%emt 0:00:30]} Qh5 {[%emt 0:00:30]} 32. Rd3 {[%emt 0:00:30]} Nc5 {[%emt 0:00:30][%csl LRd3,LRe4]} 33. Ra3 {[%emt 0:00:30]} Nxe4 {[%emt 0:00:30] [#] aiming for ...Rxa3. Pair of Knights!} 34. Kd1 {[%emt 0:00:30]} Nc5 {[%emt 0:00:30]} 35. Bc4 {[%emt 0:00:30]} Rxa3 {[%emt 0:00:30]} 36. Qxa3 {[%emt 0:00:30]} Qxf3+ {[%emt 0:00:30] Weighted Error Value: White=0.58/Black=0.13 (very precise)} 0-1

[Event "13th Chennai Open 2022"]
[Site "Chennai"]
[Date "2022.06.20"]
[Round "1.6"]
[White "Stupak, Kirill"]
[Black "Madhesh Kumar S"]
[Result "1-0"]
[ECO "D02"]
[WhiteElo "2440"]
[BlackElo "1461"]
[Annotator "TA"]
[PlyCount "95"]
[EventDate "2022.06.19"]
[EventType "swiss"]
[EventCountry "IND"]
[SourceTitle "playchess.com"]
[Source "ChessBase"]
[SourceQuality "1"]
[TimeControl "5400+30"]

{[%evp 15,94,13,21,10,24,30,33,32,54,32,68,39,43,55,66,27,47,20,54,50,82,91,137,146,162,158,160,114,154,156,520,494,510,526,517,532,511,537,515,538,534,541,520,534,534,529,544,541,632,636,617,545,527,451,770,747,855,851,840,832,1011,1001,988,993,2663,2722,2397,2023,2451,1920,2208,1939,29990,29991,29996,29997,29997,29998,29998,29999,29999]} 1. d4 {[%emt 0:00:01]} d5 {[%emt 0:00:15]} 2. c4 {[%emt 0:00:06]} e6 {[%emt 0:00:04]} 3. Nf3 {[%emt 0:00:04]} Nf6 {[%emt 0:00:18]} 4. g3 {[%emt 0:00:03]} Bd6 {[%emt 0:01:12]} 5. Bg2 {[%emt 0:00:05]} b6 {[%emt 0:00:57]} 6. O-O {[%emt 0:00:25]} Bb7 {[%emt 0:00:40]} 7. cxd5 {[%emt 0:00:05]} exd5 {[%emt 0:00:13]} 8. Nc3 {[%emt 0:00:03]} O-O $1 {[%emt 0:00:13] The main line 8...0-0 scores better than 8...a6.} 9. Nb5 {[%emt 0:01:13] D02: 1 d4 d5 2 Nf3 sidelines, including 2...Nf6 3 g3 and 2...Nf6 3 Bf4.} Ne4 {[%emt 0:01:12]} 10. Nxd6 {[%emt 0:00:10]} Qxd6 {[%emt 0:00:15]} 11. Bf4 {[%emt 0:00:02] White is slightly better.} Qe7 {[%emt 0:01:39]} 12. Rc1 {[%emt 0:00:04]} c6 {[%emt 0:00:05]} 13. Ne5 {[%emt 0:00:41]} f6 {[%emt 0:00:14]} 14. Nd3 {[%emt 0:00:09]} Nd7 {[%emt 0:00:39] [#]} 15. Qb3 $146 {[%emt 0:00:35] next Nb4 is good for White.} ({Predecessor:} 15. b4 a5 16. b5 cxb5 17. Rc7 Ba6 18. Qb3 Qf7 19. Rxd7 Qxd7 20. Bxe4 Rfd8 21. Bf3 {½-½ (40) Bugalski,L (2084)-Szadkowski,K (2165) Lublin 2006}) 15... g5 {[%emt 0:10:00]} 16. Be3 {[%emt 0:00:19]} (16. f3 $5 {[%cal Rf3e4]} Nec5 17. dxc5 gxf4 18. Nxf4 $11) 16... Kh8 {[%emt 0:00:29]} 17. Nb4 {[%emt 0:03:09]} Rac8 {[%emt 0:01:34]} 18. Qa4 {[%emt 0:00:30][%csl LRa7,LRc6][%cal Rb4c6]} a6 {[%emt 0:05:59]} (18... b5 $142 19. Qxa7 Nd6) 19. Nxc6 $16 {[%emt 0:01:26]} Qe6 {[%emt 0:09:28][%cal Rc8c6]} 20. Nb4 {[%emt 0:00:32]} a5 {[%emt 1:05:04]} 21. Nd3 {[%emt 0:00:39]} (21. Bxe4 $142 {[%cal Oe4d3] Hoping for Bd3!} dxe4 22. d5 Bxd5 23. Rxc8 Rxc8 24. Nxd5 Qxd5 25. Rd1) 21... Bc6 {[%emt 0:00:00]} 22. Qb3 {[%emt 0:01:19]} Nd6 $2 {[%emt 0:00:00] [#] Black cannot hold the game after this.} (22... Ba8 $16 23. Rxc8 Rxc8) 23. Rxc6 $1 $18 {[%emt 0:00:23][%mdl 512]} Rxc6 {[%emt 0:00:00]} 24. Bxd5 {[%emt 0:00:03][%cal Bg2d5,Bd5e6,Be6d7][%mdl 32]} a4 {[%emt 0:00:00][%cal Oe6f5]} 25. Bxe6 {[%emt 0:00:27] This bishop pair is nice.} axb3 {[%emt 0:00:00]} 26. Bxd7 {[%emt 0:00:07]} Rc7 {[%emt 0:00:00]} 27. Be6 {[%emt 0:00:02]} bxa2 {[%emt 0:00:00]} 28. Bxa2 {[%emt 0:00:03]} Re8 {[%emt 0:00:00]} 29. Nb4 {[%emt 0:00:06]} Kg7 {[%emt 0:00:00]} 30. Bb3 {[%emt 0:00:19]} b5 {[%emt 0:00:00]} 31. Nd5 {[%emt 0:00:49]} Rcc8 {[%emt 0:00:00]} 32. Ra1 {[%emt 0:00:29]} Ra8 {[%emt 0:00:00]} 33. Rd1 {[%emt 0:00:09]} Rac8 {[%emt 0:00:00]} 34. Kf1 {[%emt 0:00:28]} Rcd8 {[%emt 0:00:00]} (34... Nc4 $142 35. Bc1 Re6) 35. Nc7 {[%emt 0:00:06]} Re7 {[%emt 0:00:00]} 36. Ne6+ {[%emt 0:00:04]} Rxe6 {[%emt 0:00:00]} 37. Bxe6 {[%emt 0:00:05]} h6 {[%emt 0:00:00]} 38. Ra1 {[%emt 0:00:14]} Kg6 {[%emt 0:00:00]} 39. Ra7 {[%emt 0:00:11]} Ne4 {[%emt 0:00:00]} 40. g4 {[%emt 0:00:14][%csl Gg4][%cal Re6f5]} Nd6 {[%emt 0:00:00] Prevents Bf5+.} 41. d5 {[%emt 0:00:08] Bc5 is the strong threat.} h5 {[%emt 0:00:00]} 42. h3 {[%emt 0:00:01] Black must now prevent Bc5.} hxg4 {[%emt 0:00:00]} 43. hxg4 {[%emt 0:00:01]} Kh6 {[%emt 0:00:00]} 44. Bc5 {[%emt 0:00:09] White mates.} Ne4 {[%emt 0:00:00] [#]} 45. Bf5 $1 {[%emt 0:00:04][%csl Gf5][%cal Ra7h7]} Nd2+ {[%emt 0:00:00]} 46. Kg2 {[%emt 0:00:03][%csl Gf5][%cal Ra7h7]} Rh8 {[%emt 0:00:00] [#]} 47. Bf8+ $1 {[%emt 0:00:03]} Rxf8 {[%emt 0:00:00]} 48. Rh7# {[%emt 0:00:02] Weighted Error Value: White=0.07 (flawless) /Black=0.31} 1-0